bitfinex/quotes_SOLUSD_20250410
["timestamp","ask_amount","ask_price","bid_price","bid_amount"]
[1744329114975,23.54506411,112.83,112.82,0.063]
[1744329115156,42.19471297,112.83,112.82,0.063]
[1744329115368,50.22382224,112.83,112.82,0.063]
[1744329117366,9.28928471,112.83,112.82,0.063]
[1744329117949,31.57417338,112.83,112.82,0.063]
[1744329119681,50.22382224,112.83,112.82,0.063]
[1744329121776,9.28928471,112.83,112.82,0.063]
[1744329122079,31.57417338,112.83,112.82,0.063]
[1744329122976,9.28928471,112.83,112.82,0.063]
[1744329131775,8.8628,112.83,112.82,0.063]
[1744329132490,8.8605,112.86,112.82,22.34788867]
[1744329132658,8.8573,112.9,112.85,22.28488867]
[1744329132860,6.4984,112.93,112.89,22.28488867]
[1744329132861,8.8558,112.92,112.89,22.28488867]
[1744329133061,8.8558,112.92,112.9,22.28488867]
[1744329133267,8.8558,112.92,112.89,22.28488867]
[1744329133462,0.45648471,112.93,112.86,22.28488867]
[1744329133463,8.8854,112.93,112.9,22.28488867]
[1744329133669,8.8854,112.93,112.91,22.28488867]
[1744329133873,8.8854,112.93,112.89,6.4015]
[1744329134072,8.8854,112.93,112.86,22.28488867]
[1744329134073,22.71137338,112.92,112.88,22.28488867]
[1744329134482,22.42705024,112.92,112.88,22.28488867]
[1744329134794,0.42648471,112.9,112.87,22.28488867]
[1744329135770,0.42648471,112.9,112.86,22.28488867]
[1744329136091,8.8581,112.89,112.86,22.28488867]
[1744329138099,9.28418471,112.9,112.87,22.28488867]
[1744329138482,0.42648471,112.9,112.86,8.8605]
[1744329138685,0.03,112.93,112.89,22.28488867]
[1744329138999,8.885,112.93,112.91,22.28488867]
[1744329139189,8.885,112.93,112.9,22.28488867]
[1744329144302,0.03,112.93,112.91,22.28488867]
[1744329146379,0.03,112.93,112.92,22.28488867]
[1744329146605,0.03,112.93,112.91,22.28488867]
[1744329147126,0.03,112.93,112.9,23.84988867]
[1744329148310,0.03,112.93,112.91,22.28488867]
[1744329148808,0.03,112.93,112.92,22.28488867]
[1744329149011,0.03,112.93,112.91,22.28488867]
[1744329149410,0.03,112.93,112.92,22.28488867]
[1744329153315,0.03,112.93,112.92,14.22441805]
[1744329154720,0.03,112.93,112.9,16.6329]
[1744329154916,0.03,112.93,112.91,14.22441805]
[1744329155519,0.03,112.93,112.9,15.78941805]
[1744329155717,14.65090276,112.92,112.87,21.98161805]
[1744329156015,0.03,112.93,112.87,14.22441805]
[1744329156213,0.03,112.93,112.89,14.22441805]
[1744329156819,0.42648471,112.92,112.89,14.22441805]
[1744329157317,8.885,112.93,112.9,14.22441805]
[1744329159722,8.885,112.93,112.89,14.22441805]
[1744329164126,8.885,112.93,112.9,14.22441805]
[1744329164927,8.885,112.93,112.88,8.8587]
[1744329165112,8.885,112.93,112.89,14.22441805]
[1744329167807,8.885,112.93,112.87,16.9593]
[1744329168022,0.42648471,112.92,112.89,14.22441805]
[1744329169815,8.8566,112.91,112.88,14.22441805]
[1744329170836,8.8566,112.91,112.87,16.9597]
[1744329171138,8.8566,112.91,112.87,14.22441805]
[1744329171139,0.42648471,112.9,112.87,14.22441805]
[1744329172239,9.28428471,112.9,112.87,14.22441805]
[1744329173737,9.28428471,112.9,112.88,14.22441805]
[1744329173932,9.28428471,112.9,112.87,14.22441805]
[1744329176838,9.28428471,112.9,112.88,14.22441805]
[1744329177032,9.28428471,112.9,112.85,8.8613]
[1744329177336,0.42648471,112.91,112.89,14.22441805]
[1744329178136,0.03,112.93,112.9,14.22441805]
[1744329178437,0.03,112.93,112.92,14.22441805]
[1744329179245,0.03,112.93,112.91,14.22441805]
[1744329179421,8.8851,112.93,112.91,14.22441805]
[1744329179743,8.8851,112.93,112.9,14.22441805]
[1744329179941,8.8851,112.93,112.89,17.0858]
[1744329180130,8.8851,112.93,112.9,14.22441805]
[1744329182560,0.03,112.93,112.91,14.22441805]
[1744329183047,0.31432314,112.93,112.89,1.6368]
[1744329183352,0.31432314,112.93,112.9,14.22441805]
[1744329183649,0.31432314,112.93,112.89,26.0]
[1744329183847,0.31432314,112.93,112.89,40.22441805]
[1744329184747,9.16962314,112.93,112.9,14.22441805]
[1744329185850,9.16962314,112.93,112.89,26.0]
[1744329186237,9.16962314,112.93,112.91,14.22441805]
[1744329186445,9.16962314,112.93,112.9,14.22441805]
[1744329187253,0.03,112.93,112.91,14.22441805]
[1744329191855,0.03,112.93,112.89,34.8577]
[1744329192039,0.03,112.93,112.9,14.22441805]
[1744329192534,0.03,112.93,112.91,14.22441805]
[1744329194856,0.31432314,112.93,112.89,26.0]
[1744329195056,0.42648471,112.91,112.88,8.1]
[1744329195234,0.42648471,112.91,112.87,23.08381805]
[1744329195548,0.42648471,112.91,112.88,14.22441805]
[1744329196142,9.28318471,112.91,112.87,23.08381805]
[1744329196459,9.28318471,112.91,112.88,14.22441805]
[1744329197163,9.14102314,112.91,112.88,14.22441805]
[1744329197664,0.28432314,112.91,112.88,14.22441805]
[1744329197862,0.28432314,112.91,112.87,8.8594]
[1744329198064,0.28432314,112.92,112.89,14.22441805]
[1744329198564,9.02746157,112.93,112.9,14.22441805]
[1744329200966,9.02746157,112.93,112.88,8.8586]
[1744329201468,9.02746157,112.93,112.89,14.22441805]
[1744329202669,9.02746157,112.93,112.9,14.22441805]
[1744329204352,9.02746157,112.93,112.89,14.22441805]
[1744329205168,9.02746157,112.93,112.9,14.22441805]
[1744329205468,9.02746157,112.93,112.88,8.8586]
[1744329205665,9.02746157,112.93,112.9,14.22441805]
[1744329206344,0.28432314,112.92,112.87,16.9593]
[1744329206540,0.28432314,112.89,112.86,0.063]
[1744329206866,0.14216157,112.88,112.86,0.063]
[1744329207949,9.00186157,112.88,112.86,0.063]
[1744329212973,0.28432314,112.87,112.86,0.063]
[1744329213662,9.00186157,112.88,112.86,0.063]
[1744329214267,0.28432314,112.87,112.86,0.063]
[1744329215550,9.28618471,112.87,112.86,0.063]
[1744329216654,23.51060276,112.87,112.86,0.063]
[1744329216981,42.16025162,112.87,112.86,0.063]
[1744329217658,18.933972,112.85,112.84,0.063]
[1744329217878,19.07613357,112.85,112.84,0.063]
[1744329218184,33.30055162,112.85,112.84,0.063]
[1744329219281,0.42648471,112.85,112.84,0.063]
[1744329219778,9.28778471,112.85,112.84,0.063]
[1744329220379,0.14216157,112.88,112.84,14.28741805]
[1744329220561,0.14216157,112.88,112.85,14.22441805]
[1744329220767,0.42648471,112.88,112.85,14.22441805]
[1744329221070,0.14216157,112.88,112.85,14.22441805]
[1744329221382,0.28432314,112.87,112.85,14.22441805]
[1744329221768,95.91550068,112.86,112.84,0.063]
[1744329221961,19.07613357,112.83,112.82,0.063]
[1744329222466,33.30055162,112.83,112.82,0.063]
[1744329223458,42.16335162,112.83,112.82,0.063]
[1744329224184,27.93893357,112.83,112.82,0.063]
[1744329224483,42.16335162,112.83,112.82,0.063]
[1744329225270,50.22376996,112.83,112.82,0.063]
[1744329225858,9.28928471,112.83,112.82,0.063]
[1744329226084,31.5741211,112.83,112.82,0.063]
[1744329227883,8.8623,112.84,112.82,0.063]
[1744329228784,8.8608,112.86,112.83,22.28483639]
[1744329228986,8.99946157,112.9,112.85,22.28483639]
[1744329229156,0.28432314,112.89,112.86,22.28483639]
[1744329229563,9.14292314,112.89,112.85,22.28483639]
[1744329229763,9.14292314,112.89,112.86,22.28483639]
[1744329229969,9.14292314,112.89,112.85,22.28483639]
[1744329230585,8.8586,112.89,112.85,22.28483639]
[1744329230885,0.03,112.88,112.85,22.28483639]
[1744329232189,0.03,112.88,112.87,23.84233639]
[1744329232595,0.03,112.88,112.87,1.5575]
[1744329232888,0.03,112.88,112.87,23.84233639]
[1744329234175,0.03,112.88,112.87,1.5575]
[1744329234374,0.03,112.88,112.87,23.84233639]
[1744329241000,0.03,112.88,112.86,8.1]
[1744329241184,0.03,112.88,112.85,22.28483639]
[1744329241806,0.03,112.88,112.86,22.28483639]
[1744329242699,0.03,112.88,112.87,22.28483639]
[1744329245098,0.03,112.88,112.86,22.28483639]
[1744329246881,0.03,112.88,112.84,37.3017]
[1744329247082,0.03,112.88,112.86,22.28483639]
[1744329248207,0.45648471,112.88,112.84,30.72483639]
[1744329249204,8.8597,112.87,112.84,30.72483639]
[1744329249409,0.42648471,112.86,112.83,1.6148]
[1744329249706,22.7113211,112.86,112.82,0.063]
[1744329250009,9.17352314,112.88,112.85,22.28483639]
[1744329253819,8.8892,112.88,112.85,22.28483639]
[1744329257523,8.8892,112.88,112.86,22.28483639]
[1744329258218,8.8892,112.88,112.85,22.28483639]
[1744329258416,0.03,112.88,112.87,22.28483639]
[1744329263745,0.03,112.88,112.87,31.14453639]
[1744329264043,0.03,112.88,112.87,22.28483639]
[1744329265242,0.03,112.88,112.87,31.14453639]
[1744329266248,0.03,112.88,112.87,22.28483639]
[1744329266840,0.03,112.88,112.85,18.8359]
[1744329267014,0.03,112.88,112.85,30.72483639]
[1744329267718,0.03,112.88,112.86,22.28483639]
[1744329271754,0.03,112.88,112.87,22.28483639]
[1744329272850,0.03,112.88,112.85,8.44]
[1744329273031,0.03,112.88,112.86,22.28483639]
[1744329276135,0.03,112.88,112.85,30.72483639]
[1744329276850,0.03,112.88,112.85,22.28483639]
[1744329279248,0.03,112.88,112.86,14.24032042]
[1744329285359,0.03,112.88,112.85,14.24032042]
[1744329285554,0.03,112.88,112.84,14.24032042]
[1744329288571,8.8597,112.87,112.83,8.36]
[1744329288738,14.66680513,112.86,112.82,14.30332042]
[1744329289144,0.42648471,112.86,112.82,14.30332042]
[1744329289353,0.42648471,112.86,112.83,14.24032042]
[1744329290759,8.8613,112.85,112.82,0.063]
[1744329290960,8.8613,112.85,112.83,14.24032042]
[1744329293871,9.28698471,112.86,112.83,14.24032042]
[1744329295759,8.8597,112.87,112.83,14.24032042]
[1744329295974,8.8597,112.87,112.84,14.24032042]
[1744329296472,9.31548471,112.88,112.84,14.24032042]
[1744329296672,9.31548471,112.88,112.85,14.24032042]
[1744329297374,9.31548471,112.88,112.83,8.8628]
[1744329297673,9.31548471,112.88,112.84,14.24032042]
[1744329299165,9.31548471,112.88,112.84,23.10232042]
[1744329299992,9.31548471,112.88,112.84,14.24032042]
[1744329300786,23.55580513,112.88,112.84,14.24032042]
[1744329305081,0.42648471,112.86,112.82,22.56332042]
[1744329305379,14.66680513,112.86,112.82,14.30332042]
[1744329305582,14.66680513,112.86,112.82,0.063]
[1744329305877,0.42648471,112.83,112.82,0.063]
[1744329306066,14.66680513,112.83,112.82,0.063]
[1744329306262,0.42648471,112.83,112.82,0.063]
[1744329306468,14.66680513,112.83,112.82,0.063]
[1744329307381,9.28928471,112.83,112.82,0.063]
[1744329307675,23.52960513,112.83,112.82,0.063]
[1744329310383,42.17925399,112.83,112.82,0.063]
[1744329311471,27.93893357,112.83,112.82,0.063]
[1744329311671,42.17925399,112.83,112.82,0.063]
[1744329312689,23.52960513,112.83,112.82,0.063]
[1744329313071,42.17925399,112.83,112.82,0.063]
[1744329315383,43.81675399,112.83,112.82,0.0001]
[1744329315677,19.07613357,112.82,112.81,0.0001]
[1744329315882,14.66680513,112.82,112.81,0.0001]
[1744329317388,42.18005399,112.82,112.81,0.0001]
[1744329317865,42.03789242,112.82,112.81,0.0001]
[1744329318793,42.18005399,112.82,112.81,0.0001]
[1744329320088,0.14216157,112.81,112.8,0.0001]
[1744329320291,26.42648471,112.79,112.78,0.063]
[1744329320490,59.31645399,112.79,112.78,0.0001]
[1744329322182,68.18245399,112.79,112.78,0.0001]
[1744329322591,53.94213357,112.79,112.78,0.0001]
[1744329322794,68.18245399,112.79,112.78,0.0001]
[1744329323791,68.18245399,112.79,112.76,0.063]
[1744329323792,0.42648471,112.78,112.77,0.0001]
[1744329323976,14.66680513,112.78,112.77,0.0001]
[1744329324493,23.53360513,112.78,112.77,0.0001]
[1744329324795,42.18325399,112.78,112.77,0.0001]
[1744329326580,64.35025399,112.78,112.75,0.063]
[1744329326898,33.31645399,112.76,112.75,0.063]
[1744329327681,42.18475399,112.76,112.75,0.063]
[1744329327887,42.18475399,112.76,112.75,0.0001]
[1744329329196,23.39294356,112.76,112.75,0.0001]
[1744329329496,9.29478471,112.76,112.75,0.0001]
[1744329330397,8.8679,112.77,112.75,0.0001]
[1744329332396,9.29478471,112.76,112.75,0.0001]
[1744329332586,23.53510513,112.76,112.75,0.0001]
[1744329334599,23.29826483,112.76,112.75,0.0001]
[1744329336096,9.05794441,112.76,112.75,0.0001]
[1744329336606,9.20010598,112.76,112.75,0.0001]
[1744329336802,23.4404264,112.76,112.75,0.0001]
[1744329339904,42.09007526,112.76,112.75,0.0001]
[1744329346605,14.66680513,112.74,112.73,0.063]
[1744329348488,23.53670513,112.74,112.73,0.063]
[1744329351004,31.0343,112.78,112.73,0.063]
[1744329351197,14.24032042,112.76,112.73,0.063]
[1744329351405,14.38248199,112.75,112.73,0.063]
[1744329351605,0.28432314,112.74,112.73,0.063]
[1744329351917,33.31645399,112.74,112.73,0.063]
[1744329352117,42.18635399,112.74,112.73,0.063]
[1744329358123,31.0345,112.78,112.73,0.063]
[1744329358314,8.8668,112.78,112.75,14.24032042]
[1744329358513,0.063,112.79,112.77,14.24032042]
[1744329358694,0.063,112.79,112.78,14.24032042]
[1744329358891,0.063,112.79,112.77,14.24032042]
[1744329359304,8.929,112.79,112.76,6.2668]
[1744329359613,0.063,112.79,112.77,14.24032042]
[1744329359828,0.063,112.79,112.78,14.24032042]
[1744329360126,0.063,112.79,112.78,1.6592]
[1744329361723,0.063,112.79,112.78,23.94338589]
[1744329363317,0.063,112.79,112.78,1.6592]
[1744329363816,0.063,112.79,112.78,32.81018589]
[1744329364607,0.063,112.79,112.78,1.6592]
[1744329365927,0.063,112.79,112.76,6.2668]
[1744329366921,8.929,112.79,112.76,6.2668]
[1744329367420,8.929,112.79,112.76,28.55098589]
[1744329367722,0.28432314,112.78,112.75,1.6592]
[1744329368099,22.56850903,112.78,112.75,1.6592]
[1744329368401,22.28418589,112.77,112.73,28.61398589]
[1744329368927,9.15292314,112.76,112.73,28.61398589]
[1744329369604,9.15292314,112.76,112.73,6.3298]
[1744329371122,8.8679,112.77,112.73,28.61398589]
[1744329371304,8.8679,112.77,112.74,22.28418589]
[1744329374323,0.28432314,112.77,112.74,22.28418589]
[1744329374520,8.867,112.78,112.75,22.28418589]
[1744329374923,8.867,112.78,112.74,31.15378589]
[1744329375224,9.21362314,112.79,112.76,22.28418589]
[1744329375629,9.21362314,112.79,112.75,22.28418589]
[1744329377327,0.063,112.79,112.77,22.28418589]
[1744329377512,0.063,112.79,112.78,22.28418589]
[1744329377708,0.063,112.79,112.77,1.6038]
[1744329377913,8.9292,112.79,112.77,1.6038]
[1744329379645,0.28432314,112.78,112.75,8.22]
[1744329379934,0.28432314,112.78,112.75,30.50418589]
[1744329380107,8.9292,112.79,112.76,22.28418589]
[1744329380498,0.063,112.79,112.76,22.28418589]
[1744329380698,0.063,112.79,112.77,22.28418589]
[1744329380934,0.063,112.79,112.76,22.28418589]
[1744329381312,0.063,112.79,112.75,8.22]
[1744329381508,0.063,112.79,112.76,22.28418589]
[1744329382026,22.63150903,112.79,112.75,8.22]
[1744329382332,22.63150903,112.79,112.75,30.50418589]
[1744329382537,22.63150903,112.79,112.75,8.22]
[1744329383039,8.8668,112.78,112.75,8.22]
[1744329384137,23.13553897,112.78,112.73,14.33173897]
[1744329384934,14.55306211,112.77,112.73,0.063]
[1744329385131,8.8691,112.75,112.73,0.063]
[1744329388536,22.58980021,112.74,112.73,0.063]
[1744329388922,31.45970021,112.74,112.73,0.063]
[1744329389816,9.15422314,112.74,112.73,0.063]
[1744329390720,31.17487707,112.75,112.73,0.063]
[1744329392328,22.73196178,112.74,112.73,0.063]
[1744329393136,31.60186178,112.74,112.73,0.063]
[1744329394147,9.29638471,112.74,112.73,0.063]
[1744329396842,31.60186178,112.74,112.73,0.063]
[1744329398343,50.25151064,112.74,112.73,0.063]
[1744329398932,18.64964886,112.73,112.72,0.063]
[1744329399126,41.23944907,112.73,112.72,0.063]
[1744329399319,0.28432314,112.72,112.71,0.063]
[1744329399523,41.23944907,112.72,112.71,0.063]
[1744329400426,50.11094907,112.72,112.71,0.063]
[1744329401127,50.25311064,112.72,112.71,0.063]
[1744329404543,8.8715,112.72,112.71,0.063]
[1744329404930,9.15582314,112.72,112.71,0.063]
[1744329405351,8.8707,112.73,112.71,0.063]
[1744329405554,8.8691,112.75,112.71,22.36847707]
[1744329405759,8.8691,112.75,112.72,22.30547707]
[1744329406056,8.8691,112.75,112.71,28.50777707]
[1744329406239,31.17457707,112.75,112.71,28.50777707]
[1744329408067,8.8691,112.75,112.71,28.50777707]
[1744329408935,8.8691,112.75,112.72,22.30547707]
[1744329410361,9.15292314,112.76,112.72,22.30547707]
[1744329410655,8.8679,112.77,112.73,22.30547707]
[1744329411150,0.28432314,112.76,112.72,22.30547707]
[1744329412057,0.28432314,112.76,112.73,22.30547707]
[1744329412252,9.15302314,112.76,112.73,22.30547707]
[1744329412647,9.15302314,112.76,112.72,8.8712]
[1744329412855,9.15302314,112.76,112.72,22.30547707]
[1744329413342,9.15302314,112.76,112.73,22.30547707]
[1744329414270,31.45850021,112.76,112.71,31.24037707]
[1744329414570,9.15302314,112.76,112.72,22.30547707]
[1744329416761,22.30547707,112.75,112.71,0.063]
[1744329417351,14.27793454,112.75,112.71,14.34093454]
[1744329417950,8.8699,112.74,112.71,0.063]
[1744329418151,8.8699,112.74,112.71,14.34093454]
[1744329419272,31.17732824,112.75,112.71,22.37122824]
[1744329420754,31.17732824,112.75,112.71,0.063]
[1744329421375,9.15442314,112.74,112.71,0.063]
[1744329421550,22.30822824,112.73,112.71,0.063]
[1744329423777,8.8715,112.72,112.71,0.063]
[1744329425779,0.28432314,112.74,112.71,22.37122824]
[1744329426481,53.49558981,112.74,112.71,0.063]
[1744329426653,22.59255138,112.72,112.71,0.063]
[1744329428381,31.46405138,112.72,112.71,0.063]
[1744329429360,31.60621295,112.72,112.71,0.063]
[1744329434478,9.29798471,112.72,112.71,0.063]
[1744329434777,31.60621295,112.72,112.71,0.063]
[1744329435161,50.25586181,112.72,112.71,0.063]
[1744329435361,18.933972,112.71,112.7,0.063]
[1744329435569,50.11450024,112.71,112.7,0.063]
[1744329439267,42.09847881,112.71,112.7,0.063]
[1744329440979,23.44882995,112.71,112.7,0.063]
[1744329441185,23.59099152,112.71,112.7,0.063]
[1744329442976,42.24064038,112.71,112.7,0.063]
[1744329444284,18.933972,112.7,112.69,0.063]
[1744329444586,0.28432314,112.69,112.68,0.03]
[1744329444788,33.22617881,112.69,112.68,0.03]
[1744329445182,42.10007881,112.69,112.68,0.03]
[1744329445388,23.59259152,112.69,112.68,0.03]
[1744329450372,23.45042995,112.69,112.68,0.03]
[1744329450688,8.8739,112.69,112.68,0.03]
[1744329451387,23.16610681,112.69,112.68,0.03]
[1744329452176,8.8739,112.69,112.68,0.03]
[1744329454198,14.29220681,112.7,112.68,0.03]
[1744329456201,8.8739,112.69,112.68,0.03]
[1744329457687,45.34530681,112.71,112.68,0.03]
[1744329458706,8.8723,112.71,112.68,0.03]
[1744329458885,8.8723,112.71,112.68,14.32220681]
[1744329460503,8.8723,112.71,112.68,0.03]
[1744329460805,8.8723,112.71,112.68,14.32220681]
[1744329462106,8.8723,112.71,112.68,0.03]
[1744329463400,8.8723,112.71,112.68,14.32220681]
[1744329464689,8.8723,112.71,112.68,0.03]
[1744329469208,45.34530681,112.71,112.68,0.03]
[1744329469403,14.29220681,112.7,112.68,0.03]
[1744329470498,0.28432314,112.7,112.68,0.03]
[1744329470998,14.57652995,112.7,112.68,0.03]
[1744329471610,14.57652995,112.69,112.68,0.03]
[1744329472610,23.45042995,112.69,112.68,0.03]
[1744329473121,23.59259152,112.69,112.68,0.0001]
[1744329473329,42.24224038,112.69,112.68,0.0001]
[1744329474016,23.59259152,112.69,112.68,0.0001]
[1744329474199,8.8739,112.69,112.68,0.0001]
[1744329474724,45.34530681,112.71,112.68,0.0001]
[1744329474923,31.0531,112.71,112.68,0.0001]
[1744329475118,8.8723,112.71,112.68,0.0001]
[1744329475335,23.16450681,112.71,112.68,0.0001]
[1744329475922,45.34530681,112.71,112.68,0.0001]
[1744329476625,22.1808,112.71,112.68,0.0001]
[1744329476809,36.47300681,112.71,112.68,0.0001]
[1744329477311,36.47300681,112.71,112.68,14.29230681]
[1744329477312,22.1808,112.71,112.68,14.29230681]
[1744329477619,23.16370681,112.72,112.68,14.29230681]
[1744329477797,14.29220681,112.71,112.68,0.0001]
[1744329477998,31.0503,112.72,112.68,0.0001]
[1744329478197,31.0503,112.72,112.68,14.29230681]
[1744329478716,45.34250681,112.72,112.68,0.0001]
[1744329480020,8.8715,112.72,112.69,14.29220681]
[1744329480826,8.8707,112.73,112.7,14.29220681]
[1744329481000,8.9333,112.74,112.71,14.29220681]
[1744329481200,0.063,112.74,112.73,14.29220681]
[1744329482597,0.063,112.74,112.73,22.41220681]
[1744329483229,0.063,112.74,112.73,8.12]
[1744329486922,0.063,112.74,112.68,0.0001]
[1744329486923,14.35520681,112.74,112.68,0.0001]
[1744329487115,14.29220681,112.73,112.68,14.29230681]
[1744329487428,14.35520681,112.74,112.69,14.29220681]
[1744329487620,0.063,112.74,112.7,14.29220681]
[1744329489229,8.9329,112.74,112.7,14.29220681]
[1744329491711,0.063,112.74,112.72,14.29220681]
[1744329492318,0.063,112.74,112.71,28.12]
[1744329492319,0.063,112.74,112.71,42.41220681]
[1744329492839,0.063,112.74,112.71,28.12]
[1744329493734,0.063,112.74,112.71,20.0]
[1744329495025,14.35520681,112.74,112.71,20.0]
[1744329496133,8.8707,112.73,112.7,22.41220681]
[1744329496617,8.8707,112.73,112.71,14.29220681]
[1744329496821,0.063,112.74,112.72,14.29220681]
[1744329497233,8.9329,112.74,112.72,14.29220681]
[1744329498031,0.063,112.74,112.72,14.29220681]
[1744329499237,0.063,112.74,112.73,14.29220681]
[1744329499629,0.063,112.74,112.73,34.29220681]
[1744329499818,0.063,112.74,112.73,54.52965567]
[1744329500141,0.063,112.74,112.73,54.67181724]
[1744329500845,0.063,112.74,112.73,63.54251724]
[1744329504135,0.063,112.76,112.75,64.79181043]
[1744329504332,0.063,112.76,112.75,93.53811724]
[1744329506755,0.063,112.76,112.75,102.40721724]
[1744329507253,0.063,112.76,112.75,106.8719506]
[1744329507856,0.063,112.76,112.75,113.85928579]
[1744329508251,0.063,112.76,112.75,114.14360893]
[1744329508644,0.063,112.76,112.75,195.14360893]
[1744329510363,0.063,112.79,112.78,20.0]
[1744329510547,0.063,112.79,112.78,34.29220681]
[1744329510749,0.063,112.79,112.78,134.36834038]
[1744329510938,0.063,112.79,112.78,143.23514038]
[1744329511451,0.063,112.79,112.78,142.95081724]
[1744329511751,0.063,112.79,112.78,28.12]
[1744329511958,0.063,112.79,112.78,42.41220681]
[1744329513654,0.063,112.79,112.78,61.06185567]
[1744329514249,0.063,112.79,112.78,42.41220681]
[1744329514659,14.35520681,112.79,112.74,20.0]
[1744329514955,0.063,112.79,112.74,34.29220681]
[1744329515133,14.35520681,112.79,112.74,34.29220681]
[1744329515454,14.29220681,112.78,112.74,34.29220681]
[1744329515860,8.8676,112.77,112.74,34.29220681]
[1744329517068,8.8676,112.77,112.75,14.29220681]
[1744329517254,8.8676,112.77,112.74,42.29455124]
[1744329517945,8.8668,112.78,112.75,22.29455124]
[1744329518343,8.8668,112.78,112.74,42.29455124]
[1744329519165,22.29455124,112.77,112.74,20.0]
[1744329519369,31.16135124,112.78,112.74,20.0]
[1744329519869,22.29455124,112.77,112.74,20.0]
[1744329520046,8.8683,112.76,112.74,20.0]
[1744329522563,8.8676,112.77,112.74,20.0]
[1744329522778,0.063,112.79,112.76,42.29455124]
[1744329523079,0.063,112.79,112.77,30.41455124]
[1744329523256,8.9293,112.79,112.77,30.41455124]
[1744329523448,0.063,112.79,112.77,30.41455124]
[1744329523768,0.063,112.79,112.78,42.29455124]
[1744329524061,0.063,112.79,112.78,61.08636167]
[1744329524961,0.063,112.79,112.78,69.95316167]
[1744329527165,0.063,112.79,112.78,42.29455124]
[1744329528171,0.063,112.79,112.78,20.0]
[1744329528374,0.063,112.79,112.78,42.29455124]
[1744329534576,0.063,112.79,112.78,20.0]
[1744329534762,0.063,112.79,112.78,42.29455124]
[1744329540370,0.063,112.79,112.77,30.41455124]
[1744329541076,0.063,112.79,112.78,22.29455124]
[1744329541256,0.063,112.79,112.78,14.25985959]
[1744329541868,0.063,112.79,112.78,43.12665959]
[1744329542063,0.063,112.79,112.78,34.25985959]
[1744329543682,0.063,112.79,112.77,22.37985959]
[1744329544179,0.063,112.79,112.78,14.25985959]
[1744329545085,0.063,112.79,112.78,34.25985959]
[1744329548380,0.063,112.79,112.78,61.91847002]
[1744329548882,0.063,112.79,112.78,52.90950845]
[1744329550180,0.063,112.79,112.78,38.64964886]
[1744329550398,0.063,112.79,112.78,20.0]
[1744329550590,0.063,112.79,112.78,34.25985959]
[1744329552185,0.063,112.79,112.78,14.25985959]
[1744329552566,0.063,112.79,112.77,8.12]
[1744329553167,0.063,112.79,112.77,22.37985959]
[1744329557090,0.063,112.79,112.77,8.12]
[1744329557269,0.063,112.79,112.77,22.37985959]
[1744329558099,0.063,112.79,112.77,8.12]
[1744329558589,0.063,112.79,112.77,22.37985959]
[1744329559189,14.25985959,112.78,112.74,8.14]
[1744329559366,23.12745959,112.77,112.74,8.14]
[1744329559977,8.8676,112.77,112.74,8.14]
[1744329560273,8.8676,112.77,112.74,22.39985959]
[1744329560478,8.8671,112.78,112.75,34.25985959]
[1744329560775,8.8671,112.78,112.76,14.25985959]
[1744329561474,8.929,112.79,112.76,14.25985959]
[1744329561671,8.929,112.79,112.75,34.25985959]
[1744329562083,14.25985959,112.78,112.74,8.14]
[1744329562291,14.25985959,112.77,112.74,8.14]
[1744329563585,8.8683,112.76,112.74,8.14]
[1744329563792,23.12815959,112.76,112.71,8.17]
[1744329563997,14.25985959,112.75,112.71,22.42985959]
[1744329564881,14.25985959,112.75,112.71,8.17]
[1744329565584,8.8699,112.74,112.71,8.17]
[1744329566598,8.8699,112.74,112.71,0.03]
[1744329566892,14.25985959,112.74,112.71,0.03]
[1744329567276,22.31387482,112.74,112.71,0.03]